bitfinex-derivatives/quotes_ETHF0:USTF0_20251024
["timestamp","ask_amount","ask_price","bid_price","bid_amount"]
[1761326426134,0.784,3896.4,3896.3,0.7901]
[1761326426640,0.784,3896.4,3896.3,0.4368]
[1761326426846,0.784,3896.4,3896.3,0.7901]
[1761326427343,0.34,3896.3,3896.0,0.5755]
[1761326427548,0.784,3895.9,3895.8,0.2222]
[1761326427933,0.784,3895.9,3895.8,0.5755]
[1761326429347,0.784,3895.9,3895.8,0.2222]
[1761326429642,0.2203,3895.7,3895.6,0.46201]
[1761326429944,0.784,3895.7,3895.6,1.03751]
[1761326430649,0.34,3895.6,3895.3,0.3533]
[1761326430841,0.784,3895.4,3895.3,0.5755]
[1761326431044,0.5637,3894.8,3894.7,1.03762]
[1761326431347,0.2203,3894.8,3894.7,1.25222]
[1761326432043,0.784,3894.8,3894.7,1.25222]
[1761326432637,0.444,3894.8,3894.7,1.25222]
[1761326433449,0.00256837,3896.5,3896.4,1.25201]
[1761326433637,0.00256837,3896.5,3896.0,1.286]
[1761326433638,0.1328,3898.0,3897.6,0.3533]
[1761326433839,0.1328,3898.0,3897.8,0.46174]
[1761326434041,0.1328,3898.0,3897.7,0.3533]
[1761326434252,0.34,3897.9,3897.7,0.81505]
[1761326434651,0.34,3897.9,3897.7,0.81700938]
[1761326434652,0.34238973,3897.9,3897.7,0.81700938]
[1761326434857,0.34238973,3897.9,3897.7,0.46370938]
[1761326435351,0.34,3897.8,3897.7,0.00195938]
[1761326435549,5.34,3897.8,3897.7,0.00195938]
[1761326437052,0.4728,3897.0,3896.9,0.46185]
[1761326437252,0.34,3897.0,3896.9,0.81515]
[1761326438046,0.34,3897.0,3896.9,0.81721663]
[1761326438548,0.34,3897.0,3896.9,0.46391663]
[1761326439643,0.4684,3897.0,3896.9,0.00206663]
[1761326441350,5.4684,3897.0,3896.9,0.00206663]
[1761326442654,5.9194,3897.0,3896.9,0.00206663]
[1761326443453,0.3576,3896.5,3896.4,0.46191]
[1761326443643,0.5794,3896.5,3896.3,0.46192]
[1761326443958,0.782,3895.8,3895.7,0.999]
[1761326444649,0.782,3895.8,3895.7,0.00285488]
[1761326445161,0.782,3895.8,3895.7,0.46485488]
[1761326448054,0.782,3895.8,3895.7,0.68175488]
[1761326448459,0.782,3895.8,3895.7,1.22445488]
[1761326448851,0.1284,3896.5,3895.7,1.22445488]
[1761326448852,0.782,3896.2,3896.1,1.22155]
[1761326449052,0.2218,3896.2,3896.1,1.22155]
[1761326449556,0.5528,3896.2,3896.1,1.22155]
[1761326449757,0.782,3896.2,3896.1,1.22155]
[1761326450154,0.782,3896.2,3896.1,0.90145]
[1761326450360,0.782,3896.2,3896.1,0.67885]
[1761326451057,0.782,3896.2,3896.1,0.99895]
[1761326451250,0.782,3896.2,3896.1,1.22155]
[1761326452361,0.2218,3896.2,3896.1,1.22155]
[1761326453257,0.782,3896.6,3896.5,0.9989]
[1761326453460,0.782,3896.6,3896.5,1.2215]
[1761326453662,0.451,3896.6,3896.5,1.3537]
[1761326454348,0.782,3896.6,3896.5,1.3537]
[1761326455564,0.451,3896.6,3896.5,1.3537]
[1761326456357,0.2218,3896.6,3896.5,1.3537]
[1761326457258,0.5603,3896.8,3896.7,0.68838]
[1761326457462,0.5603,3896.8,3896.7,1.23088]
[1761326457856,0.7887,3896.8,3896.7,1.23088]
[1761326458162,0.7887,3896.8,3896.7,0.90818]
[1761326458349,0.7887,3896.8,3896.7,1.23088]
[1761326460559,0.1284,3897.0,3896.1,0.46195]
[1761326460560,0.5571,3896.2,3896.1,0.2265]
[1761326460767,0.7864,3896.2,3896.1,0.68845]
[1761326461056,0.7864,3896.2,3896.1,0.2265]
[1761326461264,0.7864,3896.2,3896.1,0.68845]
[1761326465768,0.7864,3896.2,3896.1,0.46195]
[1761326466062,0.4577,3896.2,3895.8,0.5492]
[1761326466362,0.1355,3896.5,3895.7,0.00285488]
[1761326466363,0.7864,3895.8,3895.7,0.46485488]
[1761326466962,0.7864,3895.8,3895.7,0.69135488]
[1761326467569,0.7864,3895.8,3895.7,1.03905488]
[1761326467766,0.788,3896.2,3896.1,1.23715]
[1761326471368,0.788,3896.8,3896.7,1.23708]
[1761326471963,7.04655464,3897.5,3897.0,0.46184]
[1761326471964,0.3365,3897.1,3897.0,0.46184]
[1761326472169,0.5723,3897.1,3897.0,1.37644]
[1761326472366,1.25734658,3897.7,3897.6,0.46177]
[1761326472564,1.25734658,3897.7,3897.1,1.15458]
[1761326472565,0.79038973,3897.9,3897.8,0.7752]
[1761326472961,0.79038973,3897.9,3897.6,0.46177]
[1761326473270,0.788,3897.7,3897.6,0.46177]
[1761326473672,0.788,3897.7,3897.6,0.67447]
[1761326474571,0.788,3897.7,3897.6,1.23697]
[1761326477869,0.00238973,3897.9,3897.8,1.23695]
[1761326477870,0.23818973,3897.9,3897.8,1.23695]
[1761326478271,0.57468973,3897.9,3897.8,1.23695]
[1761326478474,0.79038973,3897.9,3897.8,1.23695]
[1761326478874,0.3365,3897.8,3897.7,0.67445]
[1761326479074,0.788,3897.8,3897.7,1.23695]
[1761326481181,0.788,3897.8,3897.7,1.02215]
[1761326481473,0.788,3897.8,3897.7,0.67445]
[1761326481673,0.788,3897.8,3897.7,1.23695]
[1761326482583,0.4515,3897.8,3897.7,1.23695]
[1761326482764,0.788,3897.8,3897.7,1.23695]
[1761326483170,0.788,3897.8,3897.7,0.67445]
[1761326483564,0.788,3897.8,3897.7,1.23695]
[1761326483772,0.788,3897.8,3897.2,1.15454]
[1761326483773,0.00238973,3897.9,3897.8,1.23695]
[1761326487581,0.00238973,3897.9,3897.8,6.23695]
[1761326487777,0.788,3898.9,3898.8,1.02203]
[1761326488180,0.788,3898.9,3898.8,1.23683]
[1761326488773,0.78994821,3898.9,3898.8,1.23927115]
[1761326488980,1.58715383,3900.1,3898.8,1.23927115]
[1761326488981,0.92084658,3900.2,3899.9,0.4275]
[1761326489170,0.92084658,3900.2,3900.1,0.7752]
[1761326489171,0.788,3900.2,3900.1,0.7752]
[1761326489387,0.4515,3900.2,3900.1,0.7752]
[1761326489574,0.3365,3900.8,3900.2,0.3477]
[1761326489777,0.788,3900.5,3900.4,0.7752]
[1761326489976,0.79133368,3900.5,3900.4,0.7752]
[1761326490484,0.45483368,3900.5,3900.4,0.7752]
[1761326490787,0.92823368,3900.5,3900.4,0.2127]
[1761326491485,0.79133368,3900.5,3900.4,0.7752]
[1761326493170,0.00333368,3900.5,3900.4,0.7752]
[1761326493372,0.92084658,3901.6,3901.2,0.3477]
[1761326493673,0.92084658,3902.2,3902.0,0.1394]
[1761326493873,0.92084658,3902.4,3902.1,0.3477]
[1761326494084,10.18184658,3902.7,3902.2,0.3477]
[1761326494284,9.2628527,3902.7,3902.2,0.34949449]
[1761326494485,9.2628527,3902.7,3902.3,0.3477]
[1761326494982,9.2628527,3902.7,3901.5,0.1394]
[1761326495178,0.92084658,3902.5,3901.1,0.3477]
[1761326495482,10.6892227,3902.7,3901.2,0.2127]
[1761326495483,0.92084658,3902.3,3901.2,0.2127]
[1761326495677,0.92084658,3902.3,3901.4,0.3477]
[1761326495984,0.92084658,3902.4,3901.5,0.4871]
[1761326496689,0.92084658,3902.4,3901.4,0.00314544]
[1761326496885,0.92084658,3902.2,3901.4,0.00314544]
[1761326497717,9.266,3902.1,3901.8,0.3473]
[1761326497877,0.92084658,3902.2,3901.8,0.3473]
[1761326498077,9.267,3902.1,3901.8,0.3473]
[1761326498791,14.267,3902.1,3901.5,0.1295]
[1761326498993,9.267,3902.1,3901.4,0.35044544]
[1761326499180,9.267,3902.1,3901.5,0.1295]
[1761326499379,9.267,3902.1,3901.5,0.4768]
[1761326499580,9.267,3902.1,3901.4,0.00314544]
[1761326500083,9.267,3902.1,3901.5,0.1295]
[1761326501280,0.92084658,3902.2,3901.6,0.3473]
[1761326501491,9.263,3902.1,3901.6,0.3473]
[1761326502182,9.263,3902.1,3901.5,0.1295]
[1761326502384,9.261,3902.0,3901.6,0.3473]
[1761326503288,0.92084658,3902.2,3901.5,0.1295]
[1761326503583,4.636,3902.1,3901.5,0.1295]
[1761326503784,4.636,3902.1,3901.5,0.4768]
[1761326503981,4.636,3902.1,3901.6,0.3473]
[1761326504787,9.257,3902.0,3901.6,0.3473]
[1761326504991,9.257,3902.0,3901.4,0.00314544]
[1761326507286,0.92084658,3902.2,3901.4,0.00314544]
[1761326507492,9.251,3901.9,3901.4,0.00314544]
[1761326508111,0.92084658,3902.1,3901.4,0.00314544]
[1761326508283,8.976,3902.0,3901.4,0.00314544]
[1761326508493,13.976,3902.0,3901.4,0.00314544]
[1761326508692,24.00284658,3902.3,3901.4,0.00314544]
[1761326508693,0.92084658,3902.3,3901.4,0.00314544]
[1761326508894,0.92084658,3902.3,3901.4,0.35044544]
[1761326509197,9.251,3902.2,3901.4,0.35044544]
[1761326509384,10.17184658,3902.2,3901.4,0.35044544]
[1761326510095,10.17184658,3902.2,3901.4,0.00314544]
[1761326510895,0.92084658,3902.0,3901.4,0.00314544]
[1761326511090,14.251,3902.2,3901.4,0.00314544]
[1761326511091,0.92084658,3901.9,3901.4,0.00314544]
[1761326511392,1.38175464,3902.1,3901.4,0.00314544]
[1761326511393,0.92084658,3901.8,3901.4,0.00314544]
[1761326512300,5.92084658,3901.7,3901.4,0.00314544]
[1761326512595,0.92084658,3901.7,3901.4,0.00314544]
[1761326512796,5.0,3901.6,3901.4,0.00314544]
[1761326512998,9.251,3901.5,3901.4,0.00314544]
[1761326513391,5.0,3901.7,3901.4,0.00314544]
[1761326513392,0.92084658,3901.6,3901.4,0.00314544]
[1761326513702,9.251,3901.5,3901.4,0.56454544]
[1761326513896,9.251,3901.5,3901.4,0.00314544]
[1761326514097,14.251,3901.5,3901.4,0.00314544]
[1761326514390,15.17184658,3901.5,3901.4,0.00314544]
[1761326515190,5.0,3901.5,3901.4,0.00314544]
[1761326515391,15.63275464,3901.5,3901.4,0.00314544]
[1761326515896,15.63275464,3901.5,3900.7,0.3473]
[1761326516096,0.91788495,3901.3,3900.7,0.3473]
[1761326516393,0.91788495,3901.3,3901.0,0.1295]
[1761326516599,0.91788495,3901.3,3901.2,0.3473]
[1761326516892,0.91788495,3901.3,3901.2,0.34960622]
[1761326517393,1.38175464,3901.4,3901.2,0.34960622]
[1761326518296,9.251,3901.5,3901.2,0.34960622]
[1761326518487,1.380776,3901.3,3901.2,0.34960622]
[1761326518688,1.380776,3901.3,3901.2,0.56370622]
[1761326518896,7.004,3901.3,3901.2,0.79940622]
[1761326519189,0.92047224,3901.4,3901.3,0.7899]
[1761326519389,9.251,3901.4,3901.3,0.7899]
[1761326519982,0.92047224,3901.7,3901.6,0.7899]
[1761326520197,9.251,3901.7,3901.6,0.3359]
[1761326520400,9.251,3901.7,3901.5,0.1394]
[1761326520401,10.631776,3901.7,3901.5,0.1394]
[1761326520697,10.631776,3901.7,3901.6,0.3359]
[1761326520886,10.631776,3901.7,3901.6,0.7899]
[1761326520887,1.380776,3901.7,3901.6,0.7899]
[1761326521084,1.380776,3901.9,3901.8,0.7899]
[1761326521297,8.516776,3901.9,3901.8,0.3359]
[1761326521792,7.136,3901.9,3901.5,0.1394]
[1761326521992,1.38084086,3901.7,3901.3,0.3359]
[1761326522294,1.38084086,3901.5,3901.3,0.3359]
[1761326522493,1.38084086,3901.5,3901.4,0.3359]
[1761326522691,1.38084086,3901.6,3901.5,0.4753]
[1761326522892,7.136,3901.9,3901.5,0.4753]
[1761326523089,8.97670076,3901.9,3901.5,0.4753]
[1761326523796,1.84070076,3901.7,3900.1,0.3359]
[1761326523998,1.38116003,3900.3,3900.1,0.3359]
[1761326524301,9.25,3900.2,3900.1,0.3359]
[1761326524501,1.38116003,3900.3,3900.2,0.3359]
[1761326524705,10.63116003,3900.3,3900.2,0.3359]
[1761326524997,9.25,3900.3,3900.2,0.33888741]
[1761326525191,1.38116003,3900.3,3900.2,0.33888741]
[1761326525390,9.25,3900.3,3900.2,0.33888741]
[1761326525995,9.25,3900.3,3900.2,0.00298741]
[1761326526895,9.25,3900.3,3898.8,1.0995]
[1761326526896,14.25,3900.3,3898.8,1.0995]
[1761326527101,0.92021236,3898.9,3898.8,0.7636]
[1761326527301,0.91910119,3899.0,3898.9,0.3359]
[1761326527597,0.91910119,3899.0,3898.8,0.7636]
[1761326527598,0.91909082,3899.8,3899.3,0.3322]
[1761326527798,6.95,3899.7,3899.6,0.3322]
[1761326528000,0.00282452,3899.7,3899.6,0.33434728]
[1761326528193,9.25282452,3899.7,3899.6,0.33434728]
[1761326528398,9.25282452,3899.7,3899.6,0.00214728]
[1761326529197,10.17191534,3899.7,3899.6,0.00214728]
[1761326530303,9.25282452,3899.7,3899.6,0.00214728]
[1761326532602,0.00282452,3899.7,3899.6,0.55694728]
[1761326532800,0.00282452,3899.7,3899.6,0.77414728]
[1761326533100,9.25482452,3899.7,3899.6,0.77414728]
[1761326533996,9.25482452,3899.7,3899.6,0.55694728]
[1761326534596,9.25482452,3899.7,3899.6,0.77414728]
[1761326535402,0.00282452,3899.7,3899.6,0.77414728]
[1761326535695,9.25482452,3899.7,3899.6,0.77414728]
[1761326535895,0.00282452,3899.7,3899.6,5.77414728]
[1761326536200,9.252,3899.9,3899.8,0.772]
[1761326536400,2.66,3899.9,3899.8,1.2335]
[1761326537101,2.66304586,3899.9,3899.8,1.2335]
[1761326537602,2.2854931,3902.1,3901.2,0.2226]
[1761326537603,0.91909082,3901.5,3901.2,0.2226]
[1761326537797,0.91909082,3901.5,3901.0,0.1301]
[1761326537798,0.91909082,3901.5,3901.3,0.5548]
[1761326538104,0.91909082,3901.6,3901.5,0.4623]
[1761326538501,0.00234182,3901.6,3901.5,0.4623]
[1761326538804,0.00234182,3901.6,3901.5,0.3322]
[1761326538805,9.25434182,3901.6,3901.5,0.3322]
[1761326539002,10.17343264,3901.6,3901.0,0.4623]
[1761326539405,0.91909082,3901.2,3900.6,0.3322]
[1761326539699,0.91909082,3901.2,3900.8,0.3322]
[1761326539902,0.91909082,3901.3,3901.1,0.3322]
[1761326540101,0.91909082,3901.4,3901.3,0.3322]
[1761326540299,9.252,3901.4,3901.3,0.3322]
[1761326540601,9.252,3901.4,3901.0,0.1301]
[1761326540602,10.17109082,3901.4,3901.0,0.1301]
[1761326540806,0.91909082,3901.3,3901.1,0.3322]
[1761326542406,0.91909082,3901.3,3901.2,0.3322]
[1761326542612,0.91909082,3901.5,3901.3,0.4398]
[1761326542811,0.91909082,3901.5,3901.4,0.3322]
[1761326543106,10.17009082,3901.5,3901.1,0.5548]
[1761326543310,10.17009082,3901.5,3901.2,0.3322]
[1761326543606,0.91909082,3901.4,3901.0,0.4623]
[1761326543808,0.91909082,3901.4,3900.5,0.1301]
[1761326543809,0.91909082,3901.2,3900.7,0.3322]
[1761326544211,0.91909082,3901.1,3900.7,0.5548]
[1761326544428,9.251,3901.5,3900.7,0.5548]
[1761326544429,0.81518041,3901.5,3901.4,0.46132]
[1761326544605,0.00234182,3901.6,3901.5,0.4623]
[1761326544806,0.00234182,3901.6,3901.5,0.9021]
[1761326550728,0.00234182,3901.6,3901.5,0.6849]
[1761326551110,0.00234182,3901.6,3901.5,0.4623]
[1761326551413,0.00234182,3901.6,3901.1,0.3322]
[1761326552418,1.38266037,3901.6,3900.7,0.3322]
[1761326552611,1.38031855,3901.4,3900.7,0.3322]
[1761326552817,9.249,3901.3,3900.7,0.3322]
[1761326554321,9.249,3901.3,3900.7,0.5548]
[1761326554617,9.249,3901.3,3900.7,0.3322]
[1761326555211,9.249,3901.3,3900.7,0.5548]
[1761326555412,9.249,3901.3,3900.8,0.3322]
[1761326556010,9.249,3901.3,3900.5,0.4623]
[1761326556205,9.249,3901.3,3900.6,0.3322]
[1761326556206,10.62931855,3901.3,3900.6,0.3322]
[1761326556406,10.62931855,3901.3,3900.7,0.3322]
[1761326556611,10.62931855,3901.3,3900.7,0.5548]
[1761326556811,10.62931855,3901.3,3900.8,0.3322]
[1761326557011,1.1,3901.2,3900.8,0.3322]
[1761326557216,1.1,3901.2,3901.0,0.1301]
[1761326557417,9.249,3901.3,3901.0,0.4623]
[1761326557919,9.249,3901.3,3901.1,0.342]
[1761326558126,9.249,3901.3,3901.0,0.1301]
[1761326558321,9.249,3901.3,3901.0,0.4721]
[1761326559422,10.62931855,3901.3,3901.0,0.4721]
[1761326560020,10.62931855,3901.3,3900.6,0.342]
[1761326560620,1.38031855,3901.2,3900.6,0.342]
[1761326561515,9.249,3901.3,3900.6,0.342]
[1761326561516,1.38031855,3901.0,3900.6,0.342]
[1761326562319,1.38031855,3900.9,3900.6,0.342]
[1761326562513,1.38031855,3900.9,3900.0,0.1301]
[1761326562514,1.38031855,3900.8,3900.2,0.342]
[1761326562722,9.25,3900.7,3900.2,0.342]
[1761326563321,9.25,3900.7,3900.0,0.4721]
[1761326563526,1.38031855,3900.6,3900.0,0.4721]
[1761326564626,1.38031855,3900.6,3900.0,0.1301]
[1761326564818,1.38031855,3900.5,3900.1,0.342]
[1761326565019,1.38031855,3900.4,3900.1,0.2209]
[1761326565218,1.38031855,3900.4,3900.2,0.342]
[1761326565419,1.38031855,3900.5,3900.2,0.342]
[1761326565620,1.58072496,3900.5,3900.2,0.342]
[1761326565820,1.58072496,3900.5,3900.2,0.2209]
[1761326566025,1.38031855,3900.4,3900.3,0.342]
[1761326568324,1.38031855,3900.4,3900.3,0.7943]
[1761326568530,1.38031855,3900.8,3900.6,0.342]
[1761326568730,6.695,3900.7,3900.6,0.342]
[1761326569026,6.695,3900.7,3900.6,0.5629]
[1761326569824,8.07531855,3900.7,3900.6,0.5629]
[1761326570025,8.27616833,3900.7,3900.6,0.5629]
[1761326570227,6.695,3900.7,3900.6,0.7943]
[1761326571329,1.38031855,3900.8,3900.6,0.4523]
[1761326571528,1.38031855,3900.9,3900.8,0.342]
[1761326571728,9.92731855,3900.9,3900.8,0.342]
[1761326572738,9.92731855,3900.9,3900.8,0.5629]
[1761326573539,9.92731855,3900.9,3900.8,0.342]
[1761326573540,8.547,3900.9,3900.8,0.342]
[1761326574237,8.547,3900.9,3900.6,0.342]
[1761326574439,1.37724198,3900.8,3900.6,0.342]
[1761326574641,1.37724198,3900.8,3900.6,0.5629]
[1761326574846,9.92424198,3900.9,3900.7,0.342]
[1761326575138,1.37724198,3900.9,3900.8,0.342]
[1761326575340,9.25,3900.9,3900.8,0.342]
[1761326575739,9.25,3900.9,3900.8,0.5629]
[1761326575937,9.25,3900.9,3900.8,0.342]
[1761326578244,10.62724198,3900.9,3900.8,0.342]
[1761326579040,10.62724198,3900.9,3900.8,0.7948]
[1761326579041,9.25,3900.9,3900.8,0.7948]
[1761326579243,9.25,3900.9,3900.8,0.7804]
[1761326579244,10.62724198,3900.9,3900.8,0.7804]
[1761326579842,10.62724198,3900.9,3900.8,0.5485]
[1761326580143,10.62724198,3900.9,3900.8,0.3276]
[1761326580339,9.25,3900.9,3900.6,0.3276]
[1761326580534,9.25,3900.9,3900.5,0.1316]
[1761326580535,11.09042473,3900.9,3900.3,0.3276]
[1761326580741,1.3815149,3900.5,3900.3,0.3276]
[1761326580937,9.25,3900.4,3900.3,0.5626]
[1761326581340,9.25,3900.4,3900.3,0.7945]
[1761326582245,9.25,3900.4,3900.3,0.5626]
[1761326582447,10.6315149,3900.4,3900.3,0.5626]
[1761326582746,1.3815149,3900.5,3900.4,0.3276]
[1761326582944,9.25,3900.5,3900.4,0.7945]
[1761326584044,9.25,3900.5,3900.1,0.3276]
[1761326584247,1.38244524,3900.2,3900.1,0.3276]
[1761326584544,1.38244524,3900.2,3900.0,0.1301]
[1761326584846,9.25,3900.1,3899.8,0.3276]
[1761326585045,1.84042473,3900.4,3899.9,0.7945]
[1761326585046,10.63261386,3900.0,3899.9,0.7945]
[1761326585937,10.63261386,3900.0,3899.9,0.3276]
[1761326586438,10.63261386,3900.0,3899.9,0.5626]
[1761326587851,10.63261386,3900.0,3899.9,0.3276]
[1761326588449,10.63261386,3900.0,3899.9,0.5498]
[1761326588745,1.38261386,3900.0,3899.9,0.7728]
[1761326588952,1.38261386,3900.3,3900.1,0.3362]
[1761326589153,8.234,3900.2,3900.1,0.7814]
[1761326589374,0.9215292,3900.3,3900.2,0.7814]
[1761326589544,10.1715292,3900.3,3900.2,0.7814]
[1761326590248,0.9215292,3900.3,3900.2,1.24286]
[1761326590454,10.1715292,3900.3,3900.2,1.24286]
[1761326591046,0.9215292,3900.5,3900.4,1.24284]
[1761326591246,9.25,3900.5,3900.4,0.7814]
[1761326591847,9.25,3900.5,3900.4,1.24284]
[1761326593947,9.25,3900.5,3900.4,0.7814]
[1761326596661,9.25,3900.5,3900.4,1.24284]
[1761326596846,0.9215292,3901.3,3901.1,0.4452]
[1761326597047,0.9215292,3901.4,3901.3,0.4452]
[1761326597356,10.1695292,3901.4,3901.3,0.7814]
[1761326598263,9.248,3901.4,3901.3,0.7814]
[1761326599464,9.248,3901.4,3901.3,0.5584]
[1761326599753,9.248,3901.4,3901.3,0.3362]
[1761326600353,10.1695292,3901.4,3901.3,0.3362]
[1761326600554,10.63061386,3901.4,3901.3,0.3362]
[1761326601649,10.63061386,3901.4,3901.3,0.5584]
[1761326602658,9.248,3901.4,3901.3,0.5584]
[1761326608870,9.248,3901.4,3901.1,0.3362]
[1761326609070,0.9195604,3901.2,3901.1,0.3362]
[1761326612577,10.63061386,3901.4,3900.5,0.1305]
[1761326612578,10.63061386,3901.4,3900.7,0.3362]
[1761326612773,0.91967608,3901.0,3900.7,0.3362]
[1761326612966,9.245,3900.9,3900.7,0.3362]
[1761326614681,10.16467608,3900.9,3900.7,0.3362]
[1761326615075,10.16467608,3900.9,3900.7,0.5584]
[1761326615276,10.16467608,3900.9,3900.8,0.3362]
[1761326616083,9.245,3900.9,3900.8,0.3362]
[1761326616286,9.245,3900.9,3900.6,0.3362]
[1761326616482,0.92049492,3900.8,3900.6,0.3362]
[1761326616786,0.92049492,3900.7,3900.6,0.3362]
[1761326617581,1.38261386,3900.7,3900.6,0.3279]
[1761326617785,1.38261386,3900.8,3900.6,0.3279]
[1761326618282,1.38261386,3900.8,3900.7,0.5435]
[1761326618883,10.62761386,3900.9,3900.8,0.3279]
[1761326619182,1.38261386,3900.9,3900.8,0.7575]
[1761326619385,10.62761386,3900.9,3900.8,0.7575]
[1761326619787,1.38261386,3900.9,3900.8,0.7575]
[1761326619987,10.62761386,3900.9,3900.8,0.7575]
[1761326622492,1.38261386,3901.0,3900.9,0.3279]
[1761326622708,10.62661386,3901.0,3900.9,0.7575]
[1761326623680,1.88505685,3901.3,3901.0,0.3452]
[1761326623884,9.244,3901.2,3901.1,0.3279]
[1761326624085,9.244,3901.2,3901.1,0.5435]
[1761326624987,0.04463212,3901.3,3901.2,0.7575]
[1761326625193,9.28863212,3901.3,3901.2,0.7575]
[1761326625694,9.28863212,3901.3,3901.2,0.3279]
[1761326627095,9.28863212,3901.3,3901.2,0.5435]
[1761326627298,9.28863212,3901.3,3901.0,0.4575]
[1761326627496,9.28863212,3901.3,3901.0,0.1296]
[1761326627799,9.28863212,3901.3,3901.1,0.3279]
[1761326630497,11.12905685,3901.3,3901.1,0.3279]
[1761326630699,11.12905685,3901.3,3900.8,0.3279]
[1761326631398,1.3832855,3900.9,3900.8,0.3279]
[1761326631598,10.6252855,3900.9,3900.8,0.3279]
[1761326632697,10.6252855,3900.9,3900.8,0.5435]
[1761326633499,9.242,3900.9,3900.8,0.5435]
[1761326633891,1.84042473,3901.2,3900.8,0.4296]
[1761326634093,1.84042473,3901.2,3900.5,0.1305]
[1761326634094,9.242,3901.1,3901.0,0.6731]
[1761326634287,9.242,3901.1,3901.0,0.8871]
[1761326637601,0.04463212,3901.3,3901.2,0.2287]
[1761326637796,9.28563212,3901.3,3901.2,0.5777]
[1761326638195,9.28563212,3901.3,3901.2,0.7903]
[1761326638999,0.04463212,3901.3,3901.2,0.7903]
[1761326639303,9.28463212,3901.3,3901.2,0.7903]
[1761326639503,0.04463212,3901.3,3901.2,0.7903]
[1761326639705,9.28463212,3901.3,3901.2,0.7903]
[1761326640303,9.28463212,3901.3,3901.2,0.349]
[1761326640603,11.12505685,3901.3,3901.2,0.349]
[1761326640804,11.12505685,3901.3,3901.2,0.5777]
[1761326641004,9.28463212,3901.3,3901.2,0.5777]
[1761326642605,9.24,3901.3,3901.2,0.5777]
[1761326645305,1.84042473,3901.5,3901.2,0.5777]
[1761326645507,1.84276655,3901.6,3901.4,0.5777]
[1761326645812,1.84276655,3901.6,3901.5,0.4892]
[1761326646499,11.08176655,3901.6,3901.5,0.9305]
[1761326646701,0.00234182,3901.6,3901.5,0.9305]
[1761326646906,9.24034182,3901.6,3901.5,0.9305]
[1761326647501,0.00234182,3901.6,3901.5,0.9305]
[1761326647703,9.24034182,3901.6,3901.5,0.9305]
[1761326647904,1.38522835,3901.6,3901.5,1.39181]
[1761326648106,9.24034182,3901.6,3901.5,1.39181]
[1761326650816,0.00234182,3901.6,3901.5,1.39181]
[1761326655314,0.00234182,3901.6,3901.5,6.39181]
[1761326656714,0.56756825,3902.5,3902.3,0.4576]
[1761326656919,2.2854931,3903.5,3902.3,0.4576]
[1761326656920,0.5676,3903.9,3903.0,0.1364]
[1761326657115,0.5676,3903.4,3903.3,1.25069]
[1761326657416,0.22,3903.4,3903.3,0.7896]
[1761326657718,0.5805,3905.0,3904.9,0.2215]
[1761326658017,0.5805,3905.0,3904.6,0.2215]
[1761326658213,0.5805,3905.0,3904.3,0.332]
[1761326658214,0.4476,3903.4,3903.3,0.00277825]
[1761326658514,4.1752,3903.4,3903.3,0.00277825]
[1761326660421,4.1752,3903.4,3901.1,0.90813277]
[1761326660422,0.7952,3902.0,3901.9,0.7896]
[1761326660609,10.0272,3902.0,3901.9,0.7896]
[1761326661013,0.3476,3902.3,3902.2,0.7896]
[1761326661319,10.03045167,3902.3,3902.2,0.00220975]
[1761326663118,10.03045167,3902.3,3902.2,0.22370975]
[1761326665919,10.03045167,3902.3,3902.2,0.00220975]
[1761326666212,10.02945167,3902.3,3902.2,0.00220975]
[1761326667019,9.58085167,3902.3,3902.2,0.79180975]
[1761326667228,0.57085167,3902.3,3902.2,0.79180975]
[1761326667518,0.00325167,3902.3,3902.2,0.79180975]
[1761326667715,1.57625167,3902.3,3902.2,0.79180975]
[1761326668023,2.14385167,3902.3,3902.2,0.79180975]
[1761326668220,0.57085167,3902.3,3902.2,0.79180975]
[1761326668412,0.84625167,3902.3,3902.2,0.79180975]
[1761326668613,9.23325167,3902.3,3902.2,0.79180975]
[1761326669617,0.00325167,3902.3,3902.2,1.25302975]
[1761326671024,0.00325167,3902.3,3902.2,6.25302975]
[1761326671613,0.00325167,3902.3,3902.2,1.25302975]
[1761326671808,0.00325167,3902.3,3902.2,6.25302975]
[1761326672613,0.1329,3904.0,3903.3,0.4576]
[1761326672817,0.1329,3904.0,3903.8,0.2215]
[1761326672818,9.6766,3903.9,3903.8,0.2215]
[1761326673214,10.0242,3903.9,3903.8,0.2215]
[1761326673423,10.0242,3903.9,3903.8,0.7896]
[1761326673424,0.7952,3903.9,3903.8,0.7896]
[1761326673610,0.7952,3903.9,3903.8,0.5535]
[1761326673809,4.14863474,3903.9,3903.8,0.5535]
[1761326674207,4.14863474,3903.9,3903.8,0.2215]
[1761326674413,10.02563474,3903.9,3903.8,0.7896]
[1761326675821,10.02563474,3903.9,3903.8,0.2215]
[1761326677926,0.3475,3903.4,3903.0,0.2211]
[1761326678122,0.8008,3903.1,3903.0,0.2211]
[1761326678323,0.8008,3903.1,3903.0,0.7582]
[1761326679017,0.8008,3903.1,3903.0,0.4351]
[1761326679417,0.8008,3903.1,3903.0,0.7582]
[1761326680221,0.8008,3903.1,3903.0,0.2211]
[1761326680427,0.8008,3902.6,3902.5,0.7582]
[1761326680623,10.0268,3902.6,3902.5,0.7582]
[1761326681018,0.8008,3902.6,3902.5,0.7582]
[1761326681219,10.0268,3902.6,3902.5,0.7582]
[1761326681421,0.8008,3902.6,3902.5,0.7582]
[1761326681627,10.0268,3902.6,3902.5,0.7582]
[1761326682026,0.3475,3902.9,3902.6,0.3231]
[1761326682328,0.2272,3903.1,3903.0,0.8907]
[1761326682633,0.5747,3903.1,3903.0,1.35183]